bitfinex/quotes_BTCUSD_20240627
["timestamp","ask_amount","ask_price","bid_price","bid_amount"]
[1719518680800,0.1,61558.0,61556.0,0.001]
[1719518681378,0.119924,61557.0,61556.0,0.001]
[1719518681524,0.219924,61557.0,61556.0,0.001]
[1719518681729,0.229924,61557.0,61556.0,0.001]
[1719518682529,0.219924,61557.0,61551.0,0.1573]
[1719518682800,0.1,61556.0,61553.0,0.001]
[1719518682952,0.447057,61556.0,61553.0,0.001]
[1719518683315,0.1,61556.0,61552.0,0.00910222]
[1719518683656,0.1,61556.0,61554.0,0.00910222]
[1719518683864,0.1,61558.0,61552.0,0.00910222]
[1719518684415,0.1,61558.0,61553.0,0.001]
[1719518684617,0.51732,61558.0,61556.0,0.00910222]
[1719518684726,0.1,61558.0,61557.0,0.00910222]
[1719518684925,0.1,61562.0,61556.0,0.00910222]
[1719518685155,0.1,61562.0,61554.0,0.16233898]
[1719518685355,0.2364,61559.0,61552.0,0.001]
[1719518685560,0.1,61558.0,61552.0,0.001]
[1719518685816,0.824561,61558.0,61552.0,0.001]
[1719518686053,0.824561,61558.0,61554.0,0.001]
[1719518686227,1.06275,61557.0,61551.0,0.1573]
[1719518686363,0.80275,61557.0,61551.0,0.1573]
[1719518686987,0.48275,61557.0,61551.0,0.1573]
[1719518687184,0.182296,61557.0,61551.0,0.1573]
[1719518687403,0.1,61556.0,61551.0,0.1573]
[1719518687644,0.1,61558.0,61551.0,0.1573]
[1719518687955,0.444378,61557.0,61551.0,0.1573]
[1719518688104,0.1,61556.0,61551.0,0.1573]
[1719518688440,0.35453,61556.0,61551.0,0.1573]
[1719518688843,0.344398,61556.0,61551.0,0.1573]
[1719518689018,0.1,61556.0,61551.0,0.1573]
[1719518689426,0.102,61558.0,61551.0,0.1583]
[1719518689631,0.1,61558.0,61551.0,0.1583]
[1719518690009,0.633741,61558.0,61551.0,0.1583]
[1719518690200,0.1,61558.0,61552.0,0.01910222]
[1719518690563,0.102,61558.0,61552.0,0.01910222]
[1719518690963,0.1,61557.0,61551.0,0.17640222]
[1719518691174,0.002,61558.0,61551.0,0.1573]
[1719518691374,0.002,61558.0,61552.0,0.01910222]
[1719518692033,0.1,61561.0,61552.0,0.01910222]
[1719518692235,0.002,61558.0,61552.0,0.01910222]
[1719518692433,0.1,61561.0,61551.0,0.1573]
[1719518692843,0.002,61558.0,61551.0,0.1573]
[1719518693048,0.004,61558.0,61551.0,0.1573]
[1719518693473,0.04815687,61560.0,61551.0,0.1573]
[1719518693674,0.1,61560.0,61551.0,0.1583]
[1719518693875,0.14515819,61557.0,61551.0,0.159224]
[1719518694275,0.2364,61554.0,61551.0,0.001924]
[1719518694476,0.24515819,61553.0,61551.0,0.001924]
[1719518694693,0.04815582,61552.0,61551.0,0.001924]
[1719518695314,0.1,61553.0,61551.0,0.000924]
[1719518695528,0.14513964,61552.0,61551.0,0.000924]
[1719518695873,0.1,61552.0,61551.0,0.000924]
[1719518696014,0.1,61552.0,61551.0,0.18002622]
[1719518696219,0.1,61552.0,61551.0,0.160924]
[1719518696441,0.1,61552.0,61551.0,0.18502622]
[1719518696807,0.1,61557.0,61552.0,0.01910222]
[1719518697016,0.1,61557.0,61551.0,0.160924]
[1719518697257,0.001,61552.0,61551.0,0.166924]
[1719518697621,0.002,61552.0,61551.0,0.169924]
[1719518698550,0.001,61552.0,61551.0,0.163924]
[1719518698964,0.1,61556.0,61551.0,0.160924]
[1719518699285,0.24519003,61556.0,61551.0,0.160924]
[1719518699446,0.24519003,61556.0,61552.0,0.01910222]
[1719518699880,0.24532635,61556.0,61552.0,0.01910222]
[1719518700120,0.24532635,61556.0,61553.0,0.01910222]
[1719518700471,0.1,61556.0,61555.0,0.01910222]
[1719518701005,0.1,61559.0,61556.0,0.01910222]
[1719518702514,0.24532635,61559.0,61557.0,0.16233898]
[1719518702637,0.14532635,61559.0,61558.0,0.1637]
[1719518702836,0.24532635,61559.0,61558.0,0.3451412]
[1719518703047,0.25246517,61559.0,61558.0,0.3451412]
[1719518703246,0.103,61559.0,61558.0,0.3451412]
[1719518703844,0.24951219,61559.0,61558.0,0.3451412]
[1719518704010,0.24851219,61559.0,61558.0,0.3451412]
[1719518704429,0.103,61559.0,61558.0,0.3451412]
[1719518704625,0.003,61559.0,61558.0,0.3451412]
[1719518705059,0.14854185,61559.0,61558.0,0.3451412]
[1719518705262,0.24854185,61559.0,61558.0,0.3451412]
[1719518705669,0.24554185,61559.0,61558.0,0.3451412]
[1719518706021,0.1,61559.0,61558.0,0.3491412]
[1719518706388,0.00084,61561.0,61560.0,0.01910222]
[1719518707477,0.00084,61561.0,61560.0,0.02110222]
[1719518707844,0.00084,61561.0,61560.0,0.02310222]
[1719518708134,0.00084,61561.0,61560.0,0.1854412]
[1719518708346,0.14653337,61561.0,61560.0,0.22035532]
[1719518708534,0.10084,61561.0,61560.0,0.22035532]
[1719518709690,0.00084,61561.0,61560.0,0.22035532]
[1719518710238,0.14649382,61561.0,61560.0,0.1854412]
[1719518710431,0.24649382,61561.0,61560.0,0.16633898]
[1719518710777,0.10084,61561.0,61560.0,0.16633898]
[1719518711439,0.00084,61561.0,61560.0,0.004]
[1719518711641,0.00084,61561.0,61560.0,0.02310222]
[1719518712340,0.00084,61561.0,61560.0,0.002]
[1719518712499,0.00084,61561.0,61559.0,0.01910222]
[1719518713058,0.00184,61561.0,61559.0,0.01910222]
[1719518713261,0.02840896,61561.0,61559.0,0.01910222]
[1719518713489,0.00184,61561.0,61559.0,0.01910222]
[1719518713679,0.00084,61561.0,61559.0,0.01910222]
[1719518714045,0.00184,61561.0,61559.0,0.01910222]
[1719518714241,0.00084,61561.0,61559.0,0.01910222]
[1719518714645,0.00084,61561.0,61558.0,0.1637]
[1719518714869,0.14564116,61559.0,61558.0,0.1637]
[1719518715079,0.24564116,61559.0,61558.0,0.1637]
[1719518715911,0.24564116,61559.0,61554.0,0.5]
[1719518716149,0.1,61558.0,61553.0,0.1675]
[1719518716351,0.1,61558.0,61551.0,0.000924]
[1719518716352,0.26383954,61558.0,61551.0,0.000924]
[1719518716482,0.16383954,61553.0,61551.0,0.00085881]
[1719518716689,0.26383954,61552.0,61551.0,0.00085881]
[1719518716907,1.402858,61552.0,61551.0,0.00085881]
[1719518717106,0.1,61552.0,61551.0,0.00085881]
[1719518717316,1.5666625,61552.0,61551.0,0.00085881]
[1719518717726,0.1,61552.0,61551.0,0.05094469]
[1719518718308,0.23892,61552.0,61551.0,0.00085881]
[1719518719362,0.23892,61552.0,61551.0,0.02296103]
[1719518719363,0.101,61552.0,61551.0,0.02296103]
[1719518719498,0.001,61552.0,61551.0,0.17135881]
[1719518719710,0.001,61552.0,61551.0,0.17735881]
[1719518719711,0.14092,61552.0,61551.0,0.17735881]
[1719518720080,0.102,61552.0,61551.0,0.19646103]
[1719518720292,0.102,61552.0,61551.0,0.17735881]
[1719518720421,0.102,61552.0,61551.0,0.19646103]
[1719518721026,0.102,61552.0,61551.0,0.17735881]
[1719518721027,0.002,61552.0,61551.0,0.17735881]
[1719518721427,0.24092,61552.0,61551.0,0.19646103]
[1719518721632,0.102,61552.0,61551.0,0.19646103]
[1719518723336,0.1285804,61552.0,61551.0,0.00985881]
[1719518723548,0.1285804,61552.0,61551.0,0.00813204]
[1719518723549,0.3649804,61552.0,61551.0,0.00813204]
[1719518723704,0.3384,61552.0,61551.0,0.00813204]
[1719518724111,3.670803,61552.0,61551.0,0.00813204]
[1719518724291,0.3384,61552.0,61551.0,0.00813204]
[1719518724492,0.102,61552.0,61551.0,0.02723426]
[1719518724785,0.102,61552.0,61551.0,0.35707324]
[1719518725203,0.002,61552.0,61551.0,0.35707324]
[1719518725396,0.001,61552.0,61551.0,0.3549412]
[1719518725605,0.001,61552.0,61551.0,0.35244144]
[1719518725807,0.01,61552.0,61551.0,0.3489412]
[1719518726008,0.01,61552.0,61551.0,0.3499412]
[1719518726299,0.009,61552.0,61551.0,0.3499412]
[1719518726515,0.15457125,61552.0,61551.0,0.3499412]
[1719518726682,0.24557125,61552.0,61551.0,0.3489412]
[1719518726886,0.101,61552.0,61551.0,0.3549412]
[1719518727085,0.24757125,61552.0,61551.0,0.3578652]
[1719518727242,0.24755945,61552.0,61551.0,0.3578652]
[1719518727470,0.10284,61552.0,61551.0,0.3578652]
[1719518727672,0.24838843,61552.0,61551.0,0.3578652]
[1719518728067,0.24838843,61552.0,61551.0,0.39365172]
[1719518728068,0.10284,61552.0,61551.0,0.39365172]
[1719518729677,0.00284,61552.0,61551.0,0.39365172]
[1719518730106,0.00284,61552.0,61551.0,0.3578652]
[1719518731183,0.00162355,61552.0,61551.0,0.3578652]
[1719518731624,0.00162355,61552.0,61551.0,0.02802622]
[1719518732006,0.14715324,61552.0,61551.0,0.02802622]
[1719518732199,0.10162355,61552.0,61551.0,0.02802622]
[1719518733052,0.10162355,61552.0,61551.0,0.008924]
[1719518733254,0.00162355,61552.0,61551.0,0.008924]
[1719518733557,0.00162355,61552.0,61551.0,0.02802622]
[1719518736993,0.00162355,61552.0,61551.0,0.1903652]
[1719518737517,0.00162355,61552.0,61551.0,0.008924]
[1719518737727,0.00162355,61552.0,61551.0,0.02802622]
[1719518741109,0.00162355,61552.0,61551.0,0.21240707]
[1719518741571,0.00162355,61552.0,61551.0,0.28221445]
[1719518741856,0.00162355,61552.0,61551.0,0.35321445]
[1719518745377,0.16172522,61565.0,61556.0,0.5]
[1719518745582,0.00841,61627.0,61562.0,0.01910222]
[1719518745583,0.43892361,61578.0,61562.0,0.01910222]
[1719518745789,0.2,61578.0,61562.0,0.01910222]
[1719518745986,1.560918,61570.0,61562.0,0.01910222]
[1719518746140,1.183978,61570.0,61564.0,0.01910222]
[1719518746352,1.183978,61570.0,61565.0,0.01910222]
[1719518746605,1.183978,61570.0,61563.0,0.01910222]
[1719518746606,0.012,61565.0,61563.0,0.01910222]
[1719518746947,1.183978,61570.0,61563.0,0.01910222]
[1719518747150,0.2,61578.0,61562.0,0.01910222]
[1719518747404,0.014,61570.0,61562.0,0.01910222]
[1719518747610,0.011,61565.0,61563.0,0.01910222]
[1719518748013,0.023,61565.0,61563.0,0.01910222]
[1719518748173,0.1,61570.0,61563.0,0.01910222]
[1719518748578,0.840808,61569.0,61563.0,0.01910222]
[1719518748779,0.1,61568.0,61563.0,0.01910222]
[1719518749168,0.505439,61567.0,61563.0,0.01910222]
[1719518749385,0.1,61566.0,61563.0,0.02010222]
[1719518750014,0.1,61566.0,61563.0,0.001]
[1719518750214,0.1,61566.0,61563.0,0.02010222]
[1719518750737,0.16384861,61569.0,61563.0,0.01910222]
[1719518750738,0.1,61568.0,61563.0,0.01910222]
[1719518751058,0.114,61568.0,61563.0,0.02010222]
[1719518751297,0.013,61566.0,61564.0,0.01910222]
[1719518751689,0.013,61566.0,61565.0,0.01910222]
[1719518752275,0.013,61566.0,61564.0,0.01910222]
[1719518752732,0.26384861,61569.0,61564.0,0.01910222]
[1719518753131,0.505076,61568.0,61564.0,0.01910222]
[1719518753332,0.1,61567.0,61564.0,0.01910222]
[1719518753493,0.551107,61567.0,61564.0,0.01910222]
[1719518753907,0.1,61567.0,61564.0,0.01910222]
[1719518754336,0.013,61566.0,61564.0,0.01910222]
[1719518754534,0.012,61566.0,61564.0,0.02010222]
[1719518754881,0.1,61568.0,61564.0,0.01910222]
[1719518755291,0.013,61567.0,61564.0,0.02010222]
[1719518755492,0.464107,61567.0,61564.0,0.02010222]
[1719518755694,0.1,61566.0,61564.0,0.02010222]
[1719518755861,0.1,61566.0,61564.0,0.01910222]
[1719518756302,0.1,61566.0,61564.0,0.02010222]
[1719518756887,0.114,61568.0,61564.0,0.02010222]
[1719518757275,0.114,61568.0,61566.0,0.01910222]
[1719518757491,0.272095,61567.0,61566.0,0.01910222]
[1719518757865,0.372095,61567.0,61566.0,0.01910222]
[1719518758478,0.372095,61567.0,61566.0,0.02010222]
[1719518759090,0.372095,61567.0,61566.0,0.01910222]
[1719518759490,0.376095,61567.0,61566.0,0.01910222]
[1719518759891,0.381095,61567.0,61566.0,0.001]
[1719518761178,0.381935,61567.0,61566.0,0.001]
[1719518764905,0.381935,61567.0,61566.0,0.02010222]
[1719518765136,0.10984,61567.0,61566.0,0.001]
[1719518765331,0.496691,61567.0,61566.0,0.001]
[1719518768301,0.479789,61567.0,61566.0,0.001]
[1719518770251,0.487889,61567.0,61566.0,0.001]
[1719518770474,0.57670243,61567.0,61566.0,0.001]
[1719518772470,0.487889,61567.0,61566.0,0.001]
[1719518772939,0.724289,61567.0,61566.0,0.001]
[1719518778680,0.57401255,61567.0,61566.0,0.001]
[1719518785278,0.57401255,61567.0,61566.0,0.02010222]
[1719518785477,0.1081,61567.0,61566.0,0.08510222]
[1719518785680,0.1081,61567.0,61566.0,0.17380222]
[1719518785681,0.17205835,61567.0,61566.0,0.17380222]
[1719518785832,0.17205835,61567.0,61566.0,0.19127484]
[1719518785833,0.1081,61567.0,61566.0,0.19127484]
[1719518786036,0.1081,61567.0,61566.0,0.35361382]
[1719518786636,0.1081,61567.0,61566.0,0.35261382]
[1719518786965,0.0081,61567.0,61566.0,0.3481412]
[1719518787164,0.0081,61567.0,61566.0,0.3521412]
[1719518787325,0.07351,61590.0,61580.0,0.01910222]
[1719518787326,0.16395835,61581.0,61580.0,0.01910222]
[1719518787529,0.0945,61582.0,61581.0,0.01910222]
[1719518787773,0.0945,61582.0,61581.0,0.17270222]
[1719518788706,0.17232557,61590.0,61581.0,0.17270222]
[1719518788931,0.17232557,61590.0,61588.0,0.01910222]
[1719518789134,0.521928,61589.0,61588.0,0.01910222]
[1719518789251,0.1,61589.0,61588.0,0.01910222]
[1719518789450,0.1,61589.0,61588.0,0.10680222]
[1719518789812,0.00841,61595.0,61594.0,0.01910222]
[1719518789813,0.0204144,61595.0,61594.0,0.01910222]
[1719518789986,0.2362,61598.0,61594.0,0.01910222]
[1719518790193,0.2362,61598.0,61595.0,0.01910222]
[1719518790617,0.650691,61597.0,61595.0,0.01910222]
[1719518790780,0.650691,61597.0,61588.0,0.09838022]
[1719518790781,0.650691,61597.0,61596.0,0.01910222]
[1719518791000,0.650691,61597.0,61592.0,0.01910222]
[1719518791451,0.650691,61597.0,61593.0,0.01910222]
[1719518791839,0.1,61596.0,61590.0,0.01910222]
[1719518792038,0.005,61595.0,61590.0,0.01910222]
[1719518792237,0.005,61595.0,61592.0,0.001]
[1719518792238,0.848914,61595.0,61592.0,0.001]
[1719518792440,0.1,61594.0,61592.0,0.001]
[1719518792642,0.695385,61594.0,61593.0,0.001]
[1719518793040,0.695385,61594.0,61590.0,0.01910222]
[1719518793313,0.695385,61594.0,61588.0,0.10680222]
[1719518793518,1.004045,61593.0,61588.0,0.10680222]
[1719518793722,0.1,61592.0,61590.0,0.01910222]
[1719518794334,0.644645,61592.0,61590.0,0.01910222]
[1719518794714,0.644645,61592.0,61588.0,0.10680222]
[1719518794907,0.544645,61591.0,61590.0,0.01910222]
[1719518795054,0.644645,61591.0,61590.0,0.01910222]
[1719518795488,0.644645,61591.0,61590.0,0.02010222]
[1719518795651,0.644645,61591.0,61590.0,0.02110222]
[1719518795856,0.644645,61591.0,61590.0,0.01910222]
[1719518796055,0.580635,61591.0,61590.0,0.01910222]
[1719518796258,0.580635,61591.0,61590.0,0.02310222]
[1719518797930,0.455204,61591.0,61590.0,0.02310222]
[1719518798178,0.455204,61591.0,61590.0,0.08900222]
[1719518798179,0.1,61591.0,61590.0,0.08900222]
[1719518798381,0.00084,61597.0,61596.0,0.01910222]
[1719518798382,0.10084,61597.0,61596.0,0.01910222]
[1719518799049,0.10084,61597.0,61596.0,0.10680222]
[1719518799292,0.00084,61597.0,61596.0,0.18338244]
[1719518799492,0.00084,61597.0,61596.0,0.17270222]
[1719518799644,0.00584,61597.0,61596.0,0.17370222]
[1719518799848,0.01184,61597.0,61596.0,0.17470222]
[1719518801750,0.01184,61597.0,61596.0,0.002]
[1719518801751,1.336802,61597.0,61596.0,0.002]
[1719518801960,0.11184,61597.0,61596.0,0.002]
[1719518803231,1.98749968,61597.0,61596.0,0.002]
[1719518803474,0.13278168,61597.0,61596.0,0.002]
[1719518803697,2.90483968,61597.0,61596.0,0.002]
[1719518803922,0.13278168,61597.0,61596.0,0.002]
[1719518804140,2.81862868,61597.0,61596.0,0.002]
[1719518808500,3.18096766,61597.0,61596.0,0.002]
[1719518809142,3.18096766,61597.0,61596.0,0.00192735]
[1719518811059,3.16002598,61597.0,61596.0,0.00192735]
[1719518811501,0.11184,61597.0,61596.0,0.00192735]
[1719518813317,0.01184,61597.0,61596.0,0.00192735]
[1719518816161,3.546554,61597.0,61596.0,0.00192735]
[1719518816387,3.646554,61597.0,61596.0,0.00192735]
[1719518817144,3.78900771,61597.0,61596.0,0.00192735]
[1719518819098,2.703858,61597.0,61596.0,0.00192735]
[1719518819504,2.539408,61597.0,61596.0,0.00192735]
[1719518819908,2.372943,61597.0,61596.0,0.00192735]
[1719518820122,2.351105,61597.0,61596.0,0.00192735]
[1719518820325,1.46706,61597.0,61596.0,0.00192735]
[1719518822727,1.082447,61597.0,61596.0,0.15182735]
[1719518822971,0.758058,61597.0,61596.0,0.15182735]
[1719518823149,0.601803,61597.0,61596.0,0.15182735]
[1719518825072,0.29033945,61597.0,61596.0,0.15182735]
[1719518825692,0.23704,61605.0,61596.0,0.15182735]
[1719518825693,3.332558,61604.0,61596.0,0.15182735]
[1719518826321,2.917829,61603.0,61596.0,0.15182735]
[1719518826530,2.362894,61603.0,61597.0,0.0804]
[1719518826735,1.595603,61603.0,61597.0,0.0804]
[1719518826913,1.631654,61602.0,61597.0,0.0804]
[1719518827159,0.1,61601.0,61597.0,0.0804]
[1719518827573,1.311239,61601.0,61597.0,0.0804]
[1719518828191,0.956093,61600.0,61597.0,0.0804]
[1719518828432,0.1,61599.0,61597.0,0.09950222]
[1719518828643,0.1,61599.0,61598.0,0.01910222]
[1719518828848,0.1,61599.0,61598.0,0.16940222]
[1719518829448,0.007,61601.0,61598.0,0.16940222]
[1719518829902,0.540417,61600.0,61598.0,0.16940222]
[1719518830103,0.1,61599.0,61598.0,0.17140222]
[1719518830531,0.1,61599.0,61598.0,0.16940222]
[1719518830945,0.296016,61599.0,61598.0,0.17040222]
[1719518831362,0.1,61599.0,61598.0,0.17040222]
[1719518831585,0.1,61602.0,61599.0,0.01910222]
[1719518831787,0.00084,61604.0,61599.0,0.01910222]
[1719518832627,0.410639,61603.0,61599.0,0.01910222]
[1719518832826,0.1,61602.0,61599.0,0.01910222]
[1719518833034,0.1,61602.0,61601.0,0.01910222]
[1719518833415,0.1,61602.0,61599.0,0.01910222]
[1719518833672,0.369366,61601.0,61598.0,0.16940222]
[1719518833816,0.1,61600.0,61598.0,0.16940222]
[1719518834016,0.1,61600.0,61599.0,0.01910222]
[1719518834992,0.184478,61599.0,61598.0,0.16940222]
[1719518835192,0.1,61599.0,61598.0,0.16940222]
[1719518836053,0.1,61599.0,61598.0,0.1503]
[1719518836262,0.983291,61600.0,61598.0,0.1503]
[1719518836474,0.970952,61600.0,61598.0,0.1523]
[1719518836721,0.525534,61599.0,61598.0,0.1523]
[1719518836926,0.625534,61599.0,61598.0,0.1523]
[1719518837351,0.625534,61599.0,61598.0,0.1513]
[1719518838390,0.625534,61599.0,61598.0,0.1503]
[1719518839266,0.625534,61599.0,61596.0,0.000924]
[1719518839267,1.02554447,61599.0,61596.0,0.000924]
[1719518839468,1.02554447,61599.0,61598.0,0.001]
[1719518839469,0.861734,61599.0,61598.0,0.001]
[1719518839800,0.3362,61599.0,61598.0,0.001]
[1719518840001,0.49853898,61599.0,61598.0,0.001]
[1719518840205,0.49853898,61599.0,61596.0,0.000924]
[1719518840206,0.62047843,61599.0,61596.0,0.000924]
[1719518840403,0.1,61598.0,61596.0,0.001924]
[1719518840603,0.2362,61597.0,61596.0,0.001924]
[1719518840814,3.671291,61597.0,61596.0,0.001924]
[1719518841647,3.83362471,61597.0,61596.0,0.001924]
[1719518842051,2.487904,61597.0,61596.0,0.001924]
[1719518842250,0.549335,61597.0,61596.0,0.144224]
[1719518842603,0.549335,61597.0,61596.0,0.143224]
[1719518842808,0.560335,61597.0,61596.0,0.144224]
[1719518843733,0.549335,61597.0,61596.0,0.143224]
[1719518844965,0.555335,61597.0,61596.0,0.144224]
[1719518845174,0.562335,61597.0,61596.0,0.145224]
[1719518846207,0.2745294,61597.0,61596.0,0.145224]
[1719518847556,0.32560234,61597.0,61596.0,0.002924]
[1719518847728,0.56180234,61597.0,61596.0,0.002924]
[1719518848365,0.65580234,61597.0,61596.0,0.001924]
[1719518848567,0.64880234,61597.0,61596.0,0.000924]
[1719518848773,0.65480234,61597.0,61596.0,0.002924]
[1719518848977,0.66180234,61597.0,61596.0,0.002924]
[1719518857143,0.6107294,61597.0,61596.0,0.002924]
[1719518858921,0.4690294,61597.0,61596.0,0.002924]
[1719518859715,0.4690294,61597.0,61596.0,0.157124]
[1719518859920,0.113,61597.0,61596.0,0.17622622]
[1719518860121,0.113,61597.0,61596.0,0.19384884]
[1719518860735,0.11384,61597.0,61596.0,0.19384884]
[1719518861507,0.11384,61597.0,61596.0,0.17622622]
[1719518861715,0.00684,61597.0,61596.0,0.17522622]
[1719518861918,0.00084,61597.0,61596.0,0.17422622]
[1719518862118,0.00084,61597.0,61596.0,0.17822622]
[1719518862345,0.00084,61597.0,61596.0,0.18222622]
[1719518863964,0.00084,61597.0,61596.0,0.3445652]
[1719518864322,0.00084,61597.0,61596.0,0.37902172]
[1719518864931,0.00084,61597.0,61596.0,0.3445652]
[1719518879143,0.00084,61597.0,61596.0,0.3445652]
[1719518885603,0.00084,61597.0,61596.0,0.18222622]
[1719518886027,0.00084,61597.0,61596.0,0.02802622]
[1719518886252,0.00084,61597.0,61596.0,0.008924]
[1719518886445,0.922979,61597.0,61596.0,0.008924]
[1719518886651,1.022979,61597.0,61596.0,0.008924]
[1719518887943,0.761882,61597.0,61596.0,0.02402622]
[1719518888148,0.689973,61597.0,61596.0,0.02402622]
[1719518888561,0.551016,61597.0,61596.0,0.02002622]
[1719518888761,0.414604,61597.0,61596.0,0.02002622]
[1719518888999,0.414604,61597.0,61596.0,0.08842622]
[1719518889205,0.228364,61597.0,61596.0,0.08842622]
[1719518889406,0.226364,61597.0,61596.0,0.08842622]
[1719518889613,0.223364,61597.0,61596.0,0.08842622]
[1719518890276,0.10084,61597.0,61596.0,0.08842622]
[1719518890692,0.288464,61597.0,61596.0,0.08842622]
[1719518891507,0.288464,61597.0,61596.0,0.08942622]
[1719518892345,0.10084,61597.0,61596.0,0.17422622]
[1719518892553,0.00084,61597.0,61596.0,0.17422622]
[1719518893092,0.00084,61597.0,61596.0,0.35398782]
[1719518893700,0.00084,61597.0,61596.0,0.36398782]
[1719518898538,0.00084,61597.0,61596.0,0.36198782]
[1719518898745,0.00184,61597.0,61596.0,0.37598782]
[1719518898976,0.00284,61597.0,61596.0,0.38998782]
[1719518904290,0.00084,61604.0,61603.0,0.69020222]
[1719518904404,0.00084,61604.0,61603.0,0.92837553]
[1719518905496,0.00284,61604.0,61603.0,0.94437553]
[1719518907544,0.00284,61604.0,61603.0,0.93437553]
[1719518907750,0.00284,61604.0,61603.0,0.94437553]
[1719518911190,0.00284,61604.0,61603.0,1.22567899]
[1719518911522,0.00839,61614.0,61603.0,1.22567899]
[1719518911523,0.065056,61634.0,61625.0,0.01910222]
[1719518911736,0.012316,61637.0,61625.0,0.03652484]
[1719518911936,0.427025,61626.0,61625.0,0.03652484]
[1719518912367,0.427025,61626.0,61625.0,0.01742262]
[1719518912575,0.435025,61626.0,61625.0,0.03752484]
[1719518913007,0.250193,61626.0,61625.0,0.03752484]
[1719518913569,0.01639,61626.0,61625.0,0.03752484]
[1719518914029,0.01639,61626.0,61625.0,0.36316382]
[1719518914448,0.01639,61626.0,61625.0,0.36216382]
[1719518914449,0.00839,61626.0,61625.0,0.36216382]
[1719518914873,0.00839,61626.0,61625.0,0.45656382]
[1719518915087,0.00839,61626.0,61625.0,0.65656382]
[1719518917837,0.00839,61626.0,61625.0,0.39607279]
[1719518918849,0.00839,61626.0,61625.0,0.41007279]
[1719518919584,0.00839,61626.0,61625.0,0.40007279]
[1719518919794,0.00839,61626.0,61625.0,0.38016382]
[1719518920461,0.00839,61626.0,61625.0,0.36616382]
[1719518920661,0.00839,61626.0,61625.0,0.38016382]
[1719518920887,0.00839,61626.0,61625.0,0.36616382]
[1719518921200,0.00839,61626.0,61625.0,0.38016382]
[1719518921401,0.00839,61626.0,61625.0,0.03310222]
[1719518922514,0.00839,61626.0,61625.0,0.01910222]
[1719518923111,0.00839,61626.0,61625.0,0.3484412]
[1719518923339,0.00839,61626.0,61625.0,0.3584412]
[1719518923517,0.00839,61626.0,61625.0,0.3354412]
[1719518923930,0.00839,61626.0,61625.0,0.3604412]
[1719518924352,0.00839,61626.0,61625.0,0.3354412]
[1719518924559,0.00839,61626.0,61625.0,0.3494412]
[1719518924765,0.00839,61626.0,61625.0,0.3634412]
[1719518924972,0.00839,61626.0,61625.0,0.3494412]
[1719518925180,0.00839,61626.0,61625.0,0.3634412]
[1719518925601,0.00839,61626.0,61625.0,0.3494412]
[1719518925806,0.00839,61626.0,61625.0,0.3634412]
[1719518926420,0.00839,61626.0,61625.0,0.3494412]
[1719518926858,0.00839,61626.0,61625.0,0.3634412]
[1719518927289,0.00839,61626.0,61625.0,0.3494412]
[1719518927720,0.00839,61626.0,61625.0,0.3634412]
[1719518929841,0.00839,61626.0,61625.0,0.5734412]
[1719518930423,0.00839,61626.0,61625.0,0.3734412]
[1719518930632,0.00839,61626.0,61625.0,0.5734412]
[1719518930837,0.00839,61626.0,61625.0,0.5634412]
[1719518931234,0.00839,61626.0,61625.0,0.5734412]
[1719518934213,0.00839,61626.0,61625.0,0.7734412]
[1719518934824,0.00839,61626.0,61625.0,0.5734412]
[1719518936378,0.00839,61626.0,61625.0,0.5634412]
[1719518936538,0.00839,61626.0,61625.0,0.5734412]
[1719518936710,0.00839,61626.0,61625.0,0.3734412]
[1719518936900,0.00839,61626.0,61625.0,0.5734412]
[1719518937325,0.00839,61626.0,61625.0,0.5634412]
[1719518938299,0.00839,61626.0,61625.0,0.5734412]
[1719518940162,0.00839,61626.0,61625.0,0.3634412]
[1719518940368,0.10269,61626.0,61625.0,0.2094412]
[1719518940582,0.20269,61626.0,61625.0,0.2094412]
[1719518941384,0.20269,61626.0,61625.0,0.04710222]
[1719518942631,0.10839,61626.0,61625.0,0.3681412]
[1719518942810,0.00839,61626.0,61625.0,0.3681412]
[1719518946086,0.00839,61626.0,61625.0,0.2977412]
[1719518946488,0.00839,61626.0,61625.0,0.2094412]
[1719518947030,0.24419,61626.0,61625.0,0.011475]
[1719518947227,0.483187,61626.0,61625.0,0.03057722]
[1719518947432,0.583187,61626.0,61625.0,0.011475]
[1719518949065,0.583187,61626.0,61625.0,0.04357722]
[1719518949492,0.583187,61626.0,61625.0,0.01910222]
[1719518949714,0.583187,61626.0,61625.0,0.03210222]
[1719518950115,0.583187,61626.0,61625.0,0.013]
[1719518950285,0.583187,61626.0,61625.0,0.001]
[1719518954519,0.583187,61626.0,61625.0,0.02010222]
[1719518954663,0.570977,61626.0,61625.0,0.02010222]
[1719518955492,0.570977,61626.0,61625.0,0.001]
[1719518957080,0.570977,61626.0,61625.0,0.001924]
[1719518957479,0.570977,61626.0,61625.0,0.02102622]
[1719518958888,0.570977,61626.0,61625.0,0.02002622]
[1719518959296,0.572977,61626.0,61625.0,0.02002622]
[1719518959530,0.575977,61626.0,61625.0,0.02002622]
[1719518959731,0.572977,61626.0,61625.0,0.02002622]
[1719518960130,0.570977,61626.0,61625.0,0.02002622]
[1719518960335,0.571977,61626.0,61625.0,0.02102622]
[1719518960537,0.34519,61626.0,61625.0,0.02102622]
[1719518961438,0.483513,61626.0,61625.0,0.02102622]
[1719518962085,0.34519,61626.0,61625.0,0.02102622]
[1719518962571,0.548613,61626.0,61625.0,0.02102622]
[1719518964048,0.548613,61626.0,61625.0,0.001924]
[1719518964866,0.407213,61626.0,61625.0,0.001924]
[1719518965632,0.407213,61626.0,61625.0,0.02102622]
[1719518965853,0.20379,61626.0,61625.0,0.02102622]
[1719518966084,0.10939,61626.0,61625.0,0.10882622]
[1719518966314,0.10379,61626.0,61625.0,0.1900334]
[1719518966552,0.20379,61626.0,61625.0,0.1900334]
[1719518966963,0.20379,61626.0,61625.0,0.17882622]